[Event "Titled Tuesday Blitz July 11 Late 2023"]
[White "2KRK1"]
[Black "Vovk, Orest"]
[BlackFideId "14113490"]
[WhiteElo "2682"]
[BlackElo "2526"]
[Result "1-0"]
[Round "6"]
[TimeControl "180+2"]
[Date "2023.07.11"]
[WhiteClock "0:00:10"]
[BlackClock "0:00:00"]
[Board "49"]

1. Nf3 {[%clk 0:03:00]}  h6 {[%clk 0:02:56]} 2. b3 {[%clk 0:02:58]}  Nf6 {[%clk 0:02:54]} 3. Bb2 {[%clk 0:02:58]}  Rg8 {[%clk 0:02:54]} 4. e3 {[%clk 0:02:48]}  g5 {[%clk 0:02:54]} 5. h3 {[%clk 0:02:48]}  d5 {[%clk 0:02:52]} 6. c4 {[%clk 0:02:48]}  g4 {[%clk 0:02:48]} 7. hxg4 {[%clk 0:02:44]}  Bxg4 {[%clk 0:02:47]} 8. Nc3 {[%clk 0:02:17]}  Nc6 {[%clk 0:02:45]} 9. d4 {[%clk 0:02:12]}  dxc4 {[%clk 0:02:40]} 10. Bxc4 {[%clk 0:02:09]}  e6 {[%clk 0:02:40]} 11. Qe2 {[%clk 0:01:48]}  Bb4 {[%clk 0:02:19]} 12. O-O-O {[%clk 0:01:48]}  Nd5 {[%clk 0:01:45]} 13. Ne4 {[%clk 0:01:12]}  h5 {[%clk 0:01:29]} 14. a3 {[%clk 0:00:46]}  Be7 {[%clk 0:01:26]} 15. Nc5 {[%clk 0:00:45]}  Bxc5 {[%clk 0:00:34]} 16. dxc5 {[%clk 0:00:46]}  Qe7 {[%clk 0:00:34]} 17. b4 {[%clk 0:00:39]}  O-O-O {[%clk 0:00:31]} 18. Qc2 {[%clk 0:00:39]}  Bxf3 {[%clk 0:00:26]} 19. gxf3 {[%clk 0:00:37]}  Rg2 {[%clk 0:00:26]} 20. Qe2 {[%clk 0:00:26]}  h4 {[%clk 0:00:21]} 21. f4 {[%clk 0:00:25]}  Nf6 {[%clk 0:00:10]} 22. Rxd8+ {[%clk 0:00:19]}  Qxd8 {[%clk 0:00:10]} 23. Qf3 {[%clk 0:00:18]}  h3 {[%clk 0:00:08]} 24. Bf1 {[%clk 0:00:15]}  Rg8 {[%clk 0:00:03]} 25. Bxh3 {[%clk 0:00:15]}  Nd5 {[%clk 0:00:03]} 26. Rd1 {[%clk 0:00:13]}  f5 {[%clk 0:00:01]} 27. Bxf5 {[%clk 0:00:11]}  exf5 {[%clk 0:00:01]} 28. Qxd5 {[%clk 0:00:11]}  Qe7 {[%clk 0:00:00]} 29. Qxg8+ {[%clk 0:00:10]} 1-0


[Site "https://www.chess.com"]

[Event "Titled Tuesday Blitz July 11 Late 2023"]
[White "ArchibaldCerveza29"]
[Black "Mikhailov, Viacheslav"]
[BlackFideId "4187369"]
[WhiteElo "2521"]
[BlackElo "2663"]
[Result "1-0"]
[Round "6"]
[TimeControl "180+2"]
[Date "2023.07.11"]
[WhiteClock "0:00:20"]
[BlackClock "0:00:02"]
[Board "51"]

1. e4 {[%clk 0:03:00]}  c5 {[%clk 0:02:58]} 2. c3 {[%clk 0:03:00]}  d6 {[%clk 0:02:58]} 3. d4 {[%clk 0:03:00]}  cxd4 {[%clk 0:02:59]} 4. cxd4 {[%clk 0:03:00]}  Nf6 {[%clk 0:02:59]} 5. Nc3 {[%clk 0:03:00]}  g6 {[%clk 0:02:59]} 6. Bc4 {[%clk 0:02:58]}  Bg7 {[%clk 0:02:59]} 7. Be3 {[%clk 0:02:55]}  O-O {[%clk 0:02:58]} 8. f3 {[%clk 0:02:55]}  Nc6 {[%clk 0:02:56]} 9. Nge2 {[%clk 0:02:55]}  a6 {[%clk 0:02:55]} 10. O-O {[%clk 0:02:53]}  b5 {[%clk 0:02:54]} 11. Bb3 {[%clk 0:02:54]}  Na5 {[%clk 0:02:54]} 12. Kh1 {[%clk 0:02:46]}  Bd7 {[%clk 0:02:51]} 13. e5 {[%clk 0:02:32]}  Ne8 {[%clk 0:02:47]} 14. f4 {[%clk 0:02:31]}  Nxb3 {[%clk 0:02:42]} 15. axb3 {[%clk 0:02:30]}  Bc6 {[%clk 0:02:31]} 16. Qe1 {[%clk 0:02:23]}  Nc7 {[%clk 0:02:29]} 17. Qg3 {[%clk 0:02:09]}  b4 {[%clk 0:02:24]} 18. Nd1 {[%clk 0:02:05]}  Bb5 {[%clk 0:02:15]} 19. Re1 {[%clk 0:02:05]}  e6 {[%clk 0:02:11]} 20. Nf2 {[%clk 0:01:57]}  Nd5 {[%clk 0:02:09]} 21. Bd2 {[%clk 0:01:56]}  Rc8 {[%clk 0:02:01]} 22. Ne4 {[%clk 0:01:52]}  Rc2 {[%clk 0:02:01]} 23. Rad1 {[%clk 0:01:31]}  dxe5 {[%clk 0:01:55]} 24. fxe5 {[%clk 0:01:31]}  Rxb2 {[%clk 0:01:47]} 25. Bg5 {[%clk 0:01:30]}  Qb6 {[%clk 0:01:37]} 26. Nf4 {[%clk 0:01:29]}  Bc6 {[%clk 0:01:06]} 27. Nf6+ {[%clk 0:00:57]}  Bxf6 {[%clk 0:01:05]} 28. exf6 {[%clk 0:00:48]}  Nxf4 {[%clk 0:01:03]} 29. Qxf4 {[%clk 0:00:44]}  Rxg2 {[%clk 0:00:46]} 30. d5 {[%clk 0:00:44]}  Rxg5 {[%clk 0:00:04]} 31. Qxg5 {[%clk 0:00:43]}  Bxd5+ {[%clk 0:00:04]} 32. Rxd5 {[%clk 0:00:42]}  exd5 {[%clk 0:00:05]} 33. Rf1 {[%clk 0:00:38]}  Qb5 {[%clk 0:00:04]} 34. Rf2 {[%clk 0:00:23]}  Re8 {[%clk 0:00:04]} 35. Qh6 {[%clk 0:00:19]}  Re1+ {[%clk 0:00:04]} 36. Kg2 {[%clk 0:00:20]}  Qc6 {[%clk 0:00:02]} 37. Qg7# {[%clk 0:00:20]} 1-0


[Site "https://www.chess.com"]

[Event "Titled Tuesday Blitz July 11 Late 2023"]
[White "feuervogel1000000"]
[Black "Omelja, Artem"]
[BlackFideId "14119846"]
[WhiteElo "2520"]
[BlackElo "2647"]
[Result "0-1"]
[Round "6"]
[TimeControl "180+2"]
[Date "2023.07.11"]
[WhiteClock "0:01:55"]
[BlackClock "0:01:20"]
[Board "52"]

1. d4 {[%clk 0:03:00]}  d5 {[%clk 0:02:59]} 2. c4 {[%clk 0:02:59]}  e6 {[%clk 0:02:58]} 3. Nf3 {[%clk 0:02:59]}  c6 {[%clk 0:02:58]} 4. Nc3 {[%clk 0:02:59]}  dxc4 {[%clk 0:02:57]} 5. a4 {[%clk 0:02:57]}  Bb4 {[%clk 0:02:51]} 6. e4 {[%clk 0:02:57]}  b5 {[%clk 0:02:44]} 7. axb5 {[%clk 0:02:56]}  cxb5 {[%clk 0:02:44]} 8. Bd2 {[%clk 0:02:56]}  Bxc3 {[%clk 0:02:29]} 9. bxc3 {[%clk 0:02:53]}  Nf6 {[%clk 0:02:19]} 10. Qb1 {[%clk 0:02:52]}  a6 {[%clk 0:02:16]} 11. Be2 {[%clk 0:02:51]}  Nbd7 {[%clk 0:02:08]} 12. h4 {[%clk 0:02:46]}  Bb7 {[%clk 0:01:56]} 13. e5 {[%clk 0:02:46]}  Ne4 {[%clk 0:01:43]} 14. h5 {[%clk 0:02:29]}  h6 {[%clk 0:01:41]} 15. Qc1 {[%clk 0:02:08]}  Nb6 {[%clk 0:01:28]} 16. Rh4 {[%clk 0:02:03]}  Nxd2 {[%clk 0:01:22]} 17. Qxd2 {[%clk 0:02:04]}  Bxf3 {[%clk 0:01:19]} 18. Bxf3 {[%clk 0:02:03]}  Qxh4 {[%clk 0:01:20]} 19. Bxa8 {[%clk 0:01:59]}  Nxa8 {[%clk 0:01:20]} 20. Rxa6 {[%clk 0:01:55]}  O-O {[%clk 0:01:20]} 0-1


[Site "https://www.chess.com"]

[Event "Titled Tuesday Blitz July 11 Late 2023"]
[White "Deng, Henry"]
[Black "Bjelobrk, Igor"]
[WhiteFideId "30965454"]
[BlackFideId "4300726"]
[WhiteElo "2519"]
[BlackElo "2635"]
[Result "0-1"]
[Round "6"]
[TimeControl "180+2"]
[Date "2023.07.11"]
[WhiteClock "0:00:02"]
[BlackClock "0:00:03"]
[Board "54"]

1. e4 {[%clk 0:03:00]}  e6 {[%clk 0:02:57]} 2. d4 {[%clk 0:03:00]}  d5 {[%clk 0:02:56]} 3. Nd2 {[%clk 0:03:00]}  c5 {[%clk 0:02:55]} 4. Ngf3 {[%clk 0:03:00]}  Nc6 {[%clk 0:02:53]} 5. exd5 {[%clk 0:02:59]}  exd5 {[%clk 0:02:52]} 6. Bb5 {[%clk 0:02:59]}  cxd4 {[%clk 0:02:50]} 7. O-O {[%clk 0:02:55]}  Bd6 {[%clk 0:02:48]} 8. Nb3 {[%clk 0:02:53]}  Ne7 {[%clk 0:02:47]} 9. Nbxd4 {[%clk 0:02:51]}  O-O {[%clk 0:02:44]} 10. c3 {[%clk 0:02:49]}  Bg4 {[%clk 0:02:29]} 11. h3 {[%clk 0:02:49]}  Nxd4 {[%clk 0:02:18]} 12. cxd4 {[%clk 0:02:48]}  Bh5 {[%clk 0:02:17]} 13. Be2 {[%clk 0:02:46]}  Nc6 {[%clk 0:02:14]} 14. Be3 {[%clk 0:02:42]}  Re8 {[%clk 0:02:10]} 15. Qb3 {[%clk 0:02:38]}  Bc7 {[%clk 0:01:59]} 16. Qa3 {[%clk 0:02:09]}  Re4 {[%clk 0:01:41]} 17. Rfe1 {[%clk 0:01:57]}  Ba5 {[%clk 0:01:37]} 18. Red1 {[%clk 0:01:42]}  Qd7 {[%clk 0:01:23]} 19. b3 {[%clk 0:01:31]}  Rae8 {[%clk 0:01:16]} 20. Rac1 {[%clk 0:01:26]}  Bc7 {[%clk 0:01:12]} 21. Qc5 {[%clk 0:01:13]}  Bd6 {[%clk 0:01:00]} 22. Qc2 {[%clk 0:01:07]}  Bb8 {[%clk 0:00:53]} 23. Ne5 {[%clk 0:00:57]}  Nxe5 {[%clk 0:00:46]} 24. Bxh5 {[%clk 0:00:56]}  Nc6 {[%clk 0:00:43]} 25. Bf3 {[%clk 0:00:56]}  Rxe3 {[%clk 0:00:43]} 26. fxe3 {[%clk 0:00:56]}  Qd6 {[%clk 0:00:43]} 27. Qf2 {[%clk 0:00:52]}  Qh2+ {[%clk 0:00:31]} 28. Kf1 {[%clk 0:00:52]}  Ne7 {[%clk 0:00:22]} 29. Bg4 {[%clk 0:00:21]}  g6 {[%clk 0:00:16]} 30. Ke2 {[%clk 0:00:19]}  Qd6 {[%clk 0:00:15]} 31. Kd3 {[%clk 0:00:18]}  h5 {[%clk 0:00:15]} 32. Bf3 {[%clk 0:00:19]}  Nf5 {[%clk 0:00:15]} 33. Re1 {[%clk 0:00:19]}  Qa6+ {[%clk 0:00:14]} 34. Kc3 {[%clk 0:00:19]}  Qa3 {[%clk 0:00:13]} 35. Bxd5 {[%clk 0:00:16]}  Bg3 {[%clk 0:00:13]} 36. Qf3 {[%clk 0:00:14]}  Bxe1+ {[%clk 0:00:12]} 37. Rxe1 {[%clk 0:00:15]}  Qxa2 {[%clk 0:00:13]} 38. Kd3 {[%clk 0:00:11]}  Rd8 {[%clk 0:00:11]} 39. e4 {[%clk 0:00:11]}  Nd6 {[%clk 0:00:07]} 40. Rc1 {[%clk 0:00:09]}  Qa6+ {[%clk 0:00:07]} 41. Ke3 {[%clk 0:00:09]}  Re8 {[%clk 0:00:05]} 42. Rc7 {[%clk 0:00:09]}  Rf8 {[%clk 0:00:02]} 43. Kf2 {[%clk 0:00:07]}  Qb6 {[%clk 0:00:02]} 44. Rc5 {[%clk 0:00:07]}  Qb4 {[%clk 0:00:02]} 45. Qf6 {[%clk 0:00:06]}  Qd2+ {[%clk 0:00:02]} 46. Kg3 {[%clk 0:00:06]}  Ne8 {[%clk 0:00:02]} 47. Qxg6+ {[%clk 0:00:06]}  Ng7 {[%clk 0:00:03]} 48. Qf6 {[%clk 0:00:05]}  h4+ {[%clk 0:00:03]} 49. Kh2 {[%clk 0:00:05]}  Qe3 {[%clk 0:00:03]} 50. Qe5 {[%clk 0:00:05]}  Re8 {[%clk 0:00:02]} 51. Qc7 {[%clk 0:00:05]}  Ne6 {[%clk 0:00:01]} 52. Bxe6 {[%clk 0:00:05]}  Rxe6 {[%clk 0:00:02]} 53. Qd8+ {[%clk 0:00:04]}  Kg7 {[%clk 0:00:02]} 54. Re5 {[%clk 0:00:04]}  Rg6 {[%clk 0:00:02]} 55. Rh5 {[%clk 0:00:01]}  Qf4+ {[%clk 0:00:02]} 56. Kh1 {[%clk 0:00:01]}  Qf1+ {[%clk 0:00:02]} 57. Kh2 {[%clk 0:00:02]}  Qxg2# {[%clk 0:00:03]} 0-1


[Site "https://www.chess.com"]

[Event "Titled Tuesday Blitz July 11 Late 2023"]
[White "Womacka, Mathias"]
[Black "Kantans, Toms"]
[WhiteFideId "4611390"]
[BlackFideId "11602945"]
[WhiteElo "2519"]
[BlackElo "2634"]
[Result "0-1"]
[Round "6"]
[TimeControl "180+2"]
[Date "2023.07.11"]
[WhiteClock "0:00:00"]
[BlackClock "0:00:05"]
[Board "55"]

1. e4 {[%clk 0:03:00]}  c5 {[%clk 0:02:59]} 2. Nf3 {[%clk 0:03:00]}  Nf6 {[%clk 0:03:00]} 3. Nc3 {[%clk 0:02:59]}  Nc6 {[%clk 0:03:00]} 4. d4 {[%clk 0:02:58]}  d5 {[%clk 0:03:00]} 5. exd5 {[%clk 0:02:58]}  Nxd5 {[%clk 0:03:01]} 6. Nxd5 {[%clk 0:02:57]}  Qxd5 {[%clk 0:03:01]} 7. Be3 {[%clk 0:02:57]}  cxd4 {[%clk 0:03:01]} 8. Nxd4 {[%clk 0:02:58]}  a6 {[%clk 0:03:01]} 9. Nb3 {[%clk 0:02:42]}  Qxd1+ {[%clk 0:02:54]} 10. Rxd1 {[%clk 0:02:43]}  e5 {[%clk 0:02:53]} 11. Bc4 {[%clk 0:02:30]}  Bf5 {[%clk 0:02:53]} 12. c3 {[%clk 0:02:29]}  Rc8 {[%clk 0:02:46]} 13. Bd5 {[%clk 0:02:18]}  Be7 {[%clk 0:02:40]} 14. Nc5 {[%clk 0:02:05]}  Bxc5 {[%clk 0:02:25]} 15. Bxc5 {[%clk 0:02:06]}  Nd8 {[%clk 0:01:46]} 16. Ba3 {[%clk 0:01:57]}  Be6 {[%clk 0:01:36]} 17. O-O {[%clk 0:01:56]}  f6 {[%clk 0:01:29]} 18. f4 {[%clk 0:01:51]}  Bxd5 {[%clk 0:01:10]} 19. Rxd5 {[%clk 0:01:48]}  Nc6 {[%clk 0:01:11]} 20. Rfd1 {[%clk 0:01:34]}  exf4 {[%clk 0:01:03]} 21. Rd7 {[%clk 0:01:31]}  Rd8 {[%clk 0:00:58]} 22. Rxd8+ {[%clk 0:01:05]}  Nxd8 {[%clk 0:00:59]} 23. Kf2 {[%clk 0:00:58]}  g5 {[%clk 0:00:34]} 24. Kf3 {[%clk 0:00:58]}  Kf7 {[%clk 0:00:34]} 25. Rd7+ {[%clk 0:00:50]}  Ke6 {[%clk 0:00:34]} 26. Re7+ {[%clk 0:00:50]}  Kf5 {[%clk 0:00:35]} 27. g4+ {[%clk 0:00:45]}  fxg3 {[%clk 0:00:35]} 28. hxg3 {[%clk 0:00:45]}  h5 {[%clk 0:00:36]} 29. Bc5 {[%clk 0:00:37]}  Ne6 {[%clk 0:00:20]} 30. Bd4 {[%clk 0:00:20]}  g4+ {[%clk 0:00:20]} 31. Ke3 {[%clk 0:00:19]}  b5 {[%clk 0:00:17]} 32. Rf7 {[%clk 0:00:15]}  Rh6 {[%clk 0:00:16]} 33. a4 {[%clk 0:00:13]}  Ng5 {[%clk 0:00:07]} 34. Rf8 {[%clk 0:00:11]}  Ne4 {[%clk 0:00:06]} 35. axb5 {[%clk 0:00:10]}  axb5 {[%clk 0:00:07]} 36. b3 {[%clk 0:00:08]}  Nxg3 {[%clk 0:00:06]} 37. c4 {[%clk 0:00:09]}  bxc4 {[%clk 0:00:07]} 38. bxc4 {[%clk 0:00:10]}  h4 {[%clk 0:00:06]} 39. c5 {[%clk 0:00:08]}  h3 {[%clk 0:00:04]} 40. c6 {[%clk 0:00:09]}  Rh7 {[%clk 0:00:04]} 41. Rxf6+ {[%clk 0:00:06]}  Kg5 {[%clk 0:00:04]} 42. Rf2 {[%clk 0:00:03]}  Nf5+ {[%clk 0:00:05]} 43. Rxf5+ {[%clk 0:00:02]}  Kxf5 {[%clk 0:00:05]} 44. Bb6 {[%clk 0:00:02]}  Re7+ {[%clk 0:00:04]} 45. Kf2 {[%clk 0:00:01]}  Ke6 {[%clk 0:00:03]} 46. c7 {[%clk 0:00:01]}  Kd7 {[%clk 0:00:04]} 47. Kg3 {[%clk 0:00:01]}  Re4 {[%clk 0:00:04]} 48. Ba5 {[%clk 0:00:01]}  Rc4 {[%clk 0:00:04]} 49. Bb6 {[%clk 0:00:00]}  Ra4 {[%clk 0:00:05]} 0-1


[Site "https://www.chess.com"]

[Event "Titled Tuesday Blitz July 11 Late 2023"]
[White "Forgacs, Attila Jr."]
[Black "Fiorito, Joaquin"]
[WhiteFideId "773654"]
[BlackFideId "180173"]
[WhiteElo "2507"]
[BlackElo "2625"]
[Result "1-0"]
[Round "6"]
[TimeControl "180+2"]
[Date "2023.07.11"]
[WhiteClock "0:00:05"]
[BlackClock "0:01:01"]
[Board "58"]

1. e4 {[%clk 0:03:00]}  c5 {[%clk 0:02:59]} 2. Nf3 {[%clk 0:03:00]}  d6 {[%clk 0:02:59]} 3. d4 {[%clk 0:03:00]}  cxd4 {[%clk 0:03:00]} 4. Nxd4 {[%clk 0:03:01]}  Nf6 {[%clk 0:03:01]} 5. Nc3 {[%clk 0:03:02]}  a6 {[%clk 0:03:01]} 6. f3 {[%clk 0:03:02]}  e5 {[%clk 0:03:01]} 7. Nb3 {[%clk 0:03:02]}  Be7 {[%clk 0:03:02]} 8. Be3 {[%clk 0:03:03]}  Be6 {[%clk 0:03:02]} 9. Qd2 {[%clk 0:03:03]}  h5 {[%clk 0:03:03]} 10. Nd5 {[%clk 0:03:02]}  Nxd5 {[%clk 0:03:03]} 11. exd5 {[%clk 0:03:03]}  Bf5 {[%clk 0:03:04]} 12. Be2 {[%clk 0:03:01]}  Nd7 {[%clk 0:03:02]} 13. c4 {[%clk 0:03:00]}  Bh4+ {[%clk 0:02:59]} 14. g3 {[%clk 0:02:56]}  Be7 {[%clk 0:02:59]} 15. O-O {[%clk 0:02:47]}  b6 {[%clk 0:02:59]} 16. Rae1 {[%clk 0:02:42]}  a5 {[%clk 0:02:58]} 17. a4 {[%clk 0:02:42]}  O-O {[%clk 0:02:57]} 18. f4 {[%clk 0:02:31]}  exf4 {[%clk 0:02:49]} 19. Bxf4 {[%clk 0:02:24]}  Bg6 {[%clk 0:02:45]} 20. Nd4 {[%clk 0:02:24]}  Ne5 {[%clk 0:02:39]} 21. Nc6 {[%clk 0:02:00]}  Nxc6 {[%clk 0:02:37]} 22. dxc6 {[%clk 0:02:01]}  Be4 {[%clk 0:02:30]} 23. Bf3 {[%clk 0:01:35]}  Bxf3 {[%clk 0:02:29]} 24. Rxf3 {[%clk 0:01:36]}  Rc8 {[%clk 0:02:28]} 25. Qd5 {[%clk 0:01:35]}  Bf6 {[%clk 0:02:20]} 26. Bxd6 {[%clk 0:01:28]}  Re8 {[%clk 0:02:20]} 27. Ref1 {[%clk 0:01:13]}  Re6 {[%clk 0:02:18]} 28. Ba3 {[%clk 0:01:02]}  Rexc6 {[%clk 0:02:13]} 29. b3 {[%clk 0:00:52]}  Qxd5 {[%clk 0:01:56]} 30. cxd5 {[%clk 0:00:52]}  Rc3 {[%clk 0:01:54]} 31. d6 {[%clk 0:00:45]}  Rc2 {[%clk 0:01:47]} 32. d7 {[%clk 0:00:36]}  Rd8 {[%clk 0:01:47]} 33. Rd3 {[%clk 0:00:35]}  Ra2 {[%clk 0:01:46]} 34. Rxf6 {[%clk 0:00:28]}  Rxa3 {[%clk 0:01:30]} 35. Rxb6 {[%clk 0:00:22]}  Kf8 {[%clk 0:01:31]} 36. Rb5 {[%clk 0:00:20]}  g6 {[%clk 0:01:28]} 37. Rxa5 {[%clk 0:00:20]}  Ra2 {[%clk 0:01:28]} 38. Rb5 {[%clk 0:00:19]}  Ke7 {[%clk 0:01:28]} 39. Rb7 {[%clk 0:00:18]}  Re2 {[%clk 0:01:23]} 40. h4 {[%clk 0:00:16]}  Ke6 {[%clk 0:01:23]} 41. Kf1 {[%clk 0:00:14]}  Re5 {[%clk 0:01:19]} 42. Rb6+ {[%clk 0:00:13]}  Ke7 {[%clk 0:01:19]} 43. Rb7 {[%clk 0:00:11]}  Ke6 {[%clk 0:01:18]} 44. Kf2 {[%clk 0:00:11]}  Rc5 {[%clk 0:01:13]} 45. Kf3 {[%clk 0:00:09]}  Kf5 {[%clk 0:01:07]} 46. Rb5 {[%clk 0:00:08]}  Rxb5 {[%clk 0:01:06]} 47. axb5 {[%clk 0:00:09]}  Ke6 {[%clk 0:01:07]} 48. Kf4 {[%clk 0:00:08]}  f6 {[%clk 0:01:07]} 49. Ke4 {[%clk 0:00:05]}  Ke7 {[%clk 0:01:04]} 50. Rd5 {[%clk 0:00:03]}  Rb8 {[%clk 0:01:02]} 51. d8=Q+ {[%clk 0:00:02]}  Rxd8 {[%clk 0:01:02]} 52. Rxd8 {[%clk 0:00:02]}  Kxd8 {[%clk 0:01:03]} 53. Kd5 {[%clk 0:00:03]}  Kd7 {[%clk 0:01:04]} 54. b4 {[%clk 0:00:02]}  g5 {[%clk 0:01:03]} 55. Ke4 {[%clk 0:00:01]}  Ke6 {[%clk 0:01:03]} 56. b6 {[%clk 0:00:01]}  Kd6 {[%clk 0:00:59]} 57. Kf5 {[%clk 0:00:01]}  gxh4 {[%clk 0:00:59]} 58. gxh4 {[%clk 0:00:02]}  Kc6 {[%clk 0:01:00]} 59. Kxf6 {[%clk 0:00:02]}  Kxb6 {[%clk 0:01:00]} 60. Kg5 {[%clk 0:00:03]}  Kb5 {[%clk 0:01:01]} 61. Kxh5 {[%clk 0:00:04]}  Kxb4 {[%clk 0:01:02]} 62. Kg6 {[%clk 0:00:04]}  Kc5 {[%clk 0:01:03]} 63. h5 {[%clk 0:00:05]}  Kd6 {[%clk 0:01:01]} 64. h6 {[%clk 0:00:05]} 1-0


[Site "https://www.chess.com"]

[Event "Titled Tuesday Blitz July 11 Late 2023"]
[White "Urbina Perez, Juan Antonio"]
[Black "Veiga, Jose Francisco R P Neves"]
[WhiteFideId "2217368"]
[BlackFideId "1930087"]
[WhiteElo "2503"]
[BlackElo "2611"]
[Result "1-0"]
[Round "6"]
[TimeControl "180+2"]
[Date "2023.07.11"]
[WhiteClock "0:00:12"]
[BlackClock "0:00:00"]
[Board "61"]

1. e4 {[%clk 0:02:55]}  Nc6 {[%clk 0:02:56]} 2. Nf3 {[%clk 0:02:54]}  d6 {[%clk 0:02:55]} 3. Nc3 {[%clk 0:02:52]}  Nf6 {[%clk 0:02:51]} 4. h3 {[%clk 0:02:49]}  e5 {[%clk 0:02:49]} 5. d4 {[%clk 0:02:49]}  exd4 {[%clk 0:02:29]} 6. Nxd4 {[%clk 0:02:50]}  Bd7 {[%clk 0:02:27]} 7. Bb5 {[%clk 0:02:46]}  Nxd4 {[%clk 0:02:24]} 8. Bxd7+ {[%clk 0:02:45]}  Qxd7 {[%clk 0:02:23]} 9. Qxd4 {[%clk 0:02:46]}  Be7 {[%clk 0:02:24]} 10. b3 {[%clk 0:02:43]}  O-O {[%clk 0:02:23]} 11. Bb2 {[%clk 0:02:43]}  c6 {[%clk 0:01:57]} 12. O-O-O {[%clk 0:02:38]}  Qc7 {[%clk 0:01:43]} 13. Rhe1 {[%clk 0:02:34]}  Rfe8 {[%clk 0:01:41]} 14. f4 {[%clk 0:02:20]}  b5 {[%clk 0:01:29]} 15. g4 {[%clk 0:02:19]}  Bf8 {[%clk 0:01:24]} 16. g5 {[%clk 0:02:10]}  Nd7 {[%clk 0:01:19]} 17. h4 {[%clk 0:02:05]}  a5 {[%clk 0:01:15]} 18. a4 {[%clk 0:02:04]}  b4 {[%clk 0:01:12]} 19. Ne2 {[%clk 0:02:03]}  Nc5 {[%clk 0:01:12]} 20. Ng3 {[%clk 0:02:00]}  Ne6 {[%clk 0:01:09]} 21. Qf2 {[%clk 0:01:57]}  d5 {[%clk 0:01:07]} 22. Be5 {[%clk 0:01:38]}  Bd6 {[%clk 0:01:06]} 23. Bxd6 {[%clk 0:01:37]}  Qxd6 {[%clk 0:01:06]} 24. e5 {[%clk 0:01:37]}  Qc5 {[%clk 0:01:03]} 25. Qd2 {[%clk 0:01:23]}  Qc3 {[%clk 0:00:14]} 26. Qxc3 {[%clk 0:01:09]}  bxc3 {[%clk 0:00:15]} 27. f5 {[%clk 0:01:07]}  Nf4 {[%clk 0:00:16]} 28. Re3 {[%clk 0:01:01]}  Ng2 {[%clk 0:00:14]} 29. Rxc3 {[%clk 0:00:57]}  Nxh4 {[%clk 0:00:15]} 30. f6 {[%clk 0:00:34]}  Rxe5 {[%clk 0:00:13]} 31. fxg7 {[%clk 0:00:27]}  Rxg5 {[%clk 0:00:13]} 32. Ne2 {[%clk 0:00:26]}  Rg6 {[%clk 0:00:10]} 33. Nd4 {[%clk 0:00:24]}  Rc8 {[%clk 0:00:09]} 34. Rf1 {[%clk 0:00:21]}  Kxg7 {[%clk 0:00:07]} 35. Rh3 {[%clk 0:00:20]}  Ng2 {[%clk 0:00:05]} 36. Nf5+ {[%clk 0:00:19]}  Kf8 {[%clk 0:00:03]} 37. Rxh7 {[%clk 0:00:19]}  Ke8 {[%clk 0:00:02]} 38. Rf2 {[%clk 0:00:16]}  Kd7 {[%clk 0:00:03]} 39. Rxf7+ {[%clk 0:00:15]}  Ke6 {[%clk 0:00:02]} 40. Re7+ {[%clk 0:00:16]}  Kf6 {[%clk 0:00:01]} 41. Ree2 {[%clk 0:00:13]}  Nh4 {[%clk 0:00:01]} 42. Nd6+ {[%clk 0:00:12]}  Kg7 {[%clk 0:00:01]} 43. Nxc8 {[%clk 0:00:12]}  Rg1+ {[%clk 0:00:01]} 44. Kb2 {[%clk 0:00:12]}  Ng6 {[%clk 0:00:02]} 45. Rg2 {[%clk 0:00:12]}  Rxg2 {[%clk 0:00:02]} 46. Rxg2 {[%clk 0:00:13]}  Kf7 {[%clk 0:00:03]} 47. Rxg6 {[%clk 0:00:12]}  Kxg6 {[%clk 0:00:00]} 48. Ne7+ {[%clk 0:00:12]} 1-0


[Site "https://www.chess.com"]